lending/lending_fUSD_20260310
["ID","MTS","AMOUNT","RATE_DAILY","PERIOD"]
[408181411,1773186639071,-150.0,0.00015457,2]
[408181412,1773186639080,-150.0,0.00015457,2]
[408181413,1773186639089,-500.0,0.00015457,2]
[408181414,1773186639098,-150.0,0.00015457,2]
[408181415,1773186639108,-203.80020583,0.00015486,2]
[408181416,1773186639118,-300.0,0.00015486,2]
[408181417,1773186639128,-154.44217936,0.00015486,2]
[408181418,1773186639139,-250.0,0.00015486,2]
[408181419,1773186639148,-5271.47223468,0.000155,2]
[408181420,1773186639157,-288.08643527,0.000155,2]
[408181421,1773186639167,-150.14054899,0.00015512,2]
[408181422,1773186639176,-500.0,0.00015512,2]
[408181423,1773186639185,-150.38339506,0.00015512,2]
[408181424,1773186639194,-150.0,0.00015512,2]
[408181425,1773186639203,-150.0,0.00015512,2]
[408181426,1773186639212,-150.0,0.00015512,2]
[408181427,1773186639222,-500.0,0.00015512,2]
[408181428,1773186639231,-500.0,0.00015512,2]
[408181429,1773186639240,-500.0,0.00015512,2]
[408181430,1773186639249,-151.17604602,0.00015512,2]
[408181431,1773186639258,-150.5231356,0.00015512,2]
[408181432,1773186639267,-150.36304931,0.00015512,2]
[408181433,1773186639276,-150.0,0.00015512,2]
[408181434,1773186639285,-505.89870401,0.00015512,2]
[408181435,1773186639294,-206.88410607,0.00015512,2]
[408181436,1773186639303,-2173.18,0.0001553,2]
[408181437,1773186639313,-166.66,0.00015542,2]
[408181438,1773186639323,-500.0,0.00015543,2]
[408181439,1773186639333,-500.0,0.00015544,2]
[408181440,1773186639343,-306.2,0.00015547,2]
[408181441,1773186639352,-500.0,0.00015567,2]
[408181442,1773186639362,-150.0,0.00015567,2]
[408181443,1773186639370,-150.0,0.00015567,2]
[408181444,1773186639379,-200.0,0.00015567,2]
[408181445,1773186639389,-500.0,0.00015567,2]
[408181446,1773186639398,-500.0,0.00015567,2]
[408181447,1773186639408,-500.0,0.00015567,2]
[408181448,1773186639417,-150.0,0.00015567,2]
[408181449,1773186639426,-500.0,0.00015573,2]
[408181450,1773186639435,-191.64287985,0.00015573,2]
[408181451,1773186639445,-162.16516283,0.00015573,2]
[408181452,1773186639454,-325.45212521,0.00015573,2]
[408181453,1773186639464,-500.0,0.00015573,2]
[408181454,1773186639474,-504.18348935,0.0001559,2]
[408181455,1773186639483,-500.0,0.00015598,2]
[408181456,1773186639494,-500.0,0.00015598,2]
[408181457,1773186639503,-500.0,0.00015598,2]
[408181458,1773186639514,-339.8485859,0.00015599,2]
[408181459,1773186639523,-500.0,0.00015599,2]
[408181460,1773186639532,-500.0,0.00015599,2]
[408181461,1773186639544,-452.58617442,0.00015599,2]
[408181462,1773186639553,-191.94864272,0.00015599,2]
[408181463,1773186639562,-500.0,0.00015599,2]
[408181464,1773186639571,-500.0,0.00015599,2]
[408181465,1773186639580,-500.0,0.00015599,2]
[408181466,1773186639589,-500.0,0.00015599,2]
[408181467,1773186639599,-500.0,0.00015599,2]
[408181468,1773186639607,-500.0,0.00015599,2]
[408181469,1773186639617,-500.0,0.00015599,2]
[408181470,1773186639626,-500.0,0.00015599,2]
[408181471,1773186639634,-500.0,0.00015599,2]
[408181472,1773186639644,-500.0,0.00015599,2]
[408181473,1773186639653,-500.0,0.00015599,2]
[408181474,1773186639662,-500.0,0.00015599,2]
[408181475,1773186639671,-500.0,0.00015599,2]
[408181476,1773186639680,-500.0,0.00015599,2]
[408181477,1773186639689,-500.0,0.00015599,2]
[408181478,1773186639698,-500.0,0.00015599,2]
[408181479,1773186639707,-326.84417563,0.00015599,2]
[408181480,1773186639716,-506.3,0.00015599,2]
[408181481,1773186639724,-500.0,0.00015599,2]
[408181482,1773186639736,-500.0,0.00015599,2]
[408181483,1773186639748,-500.0,0.00015599,2]
[408181484,1773186639758,-500.0,0.00015599,2]
[408181485,1773186639767,-500.0,0.00015599,2]
[408181486,1773186639776,-500.0,0.00015599,2]
[408181487,1773186639786,-500.0,0.00015599,2]
[408181488,1773186639795,-500.0,0.00015599,2]
[408181489,1773186639804,-500.0,0.00015599,2]
[408181490,1773186639814,-222.65,0.00015599,2]
[408181491,1773186639823,-500.0,0.00015599,2]
[408181492,1773186639831,-500.0,0.00015599,2]
[408181493,1773186639841,-500.0,0.00015599,2]
[408181494,1773186639850,-500.0,0.00015599,2]
[408181495,1773186639859,-500.0,0.00015599,2]
[408181496,1773186639868,-500.0,0.00015599,2]
[408181497,1773186639877,-500.0,0.00015599,2]
[408181498,1773186639886,-500.0,0.00015599,2]
[408181499,1773186639895,-500.0,0.00015599,2]
[408181500,1773186639904,-500.0,0.00015599,2]
[408181501,1773186639913,-500.0,0.00015599,2]
[408181502,1773186639922,-500.0,0.00015599,2]
[408181503,1773186639931,-500.0,0.00015599,2]
[408181504,1773186639940,-500.0,0.00015599,2]
[408181505,1773186639950,-500.0,0.00015599,2]
[408181506,1773186639959,-500.0,0.00015599,2]
[408181507,1773186639968,-527.18458678,0.00015599,2]
[408181508,1773186639977,-500.0,0.00015599,2]
[408181509,1773186639986,-500.0,0.00015599,2]
[408181510,1773186639998,-500.0,0.00015599,2]
[408181511,1773186640007,-500.0,0.00015599,2]
[408181512,1773186640017,-500.0,0.00015599,2]
[408181514,1773186640027,-500.0,0.00015599,2]
[408181516,1773186640037,-500.0,0.00015599,2]
[408181517,1773186640046,-2500000.0,0.000156,2]
[408181518,1773186640055,-200.0,0.000156,5]
[408181519,1773186640065,-500.0,0.00015621,2]
[408181520,1773186640075,-150.0,0.00015621,2]
[408181521,1773186640084,-150.0,0.00015621,2]
[408181522,1773186640094,-500.0,0.00015621,2]
[408181523,1773186640104,-150.0,0.00015621,2]
[408181524,1773186640113,-500.0,0.00015621,2]
[408181525,1773186640122,-202.81580585,0.00015621,2]
[408181526,1773186640131,-281.75115983,0.00015676,2]
[408181527,1773186640140,-250.0,0.00015676,2]
[408181528,1773186640149,-200.0,0.00015676,2]
[408181529,1773186640159,-500.0,0.00015676,2]
[408181530,1773186640169,-194.737577,0.00015676,2]
[408181531,1773186640179,-250.0,0.0001568,2]
[408181532,1773186640188,-500.0,0.000157,5]
[408181533,1773186640197,-500.0,0.00015731,2]
[408181534,1773186640207,-2396.2,0.0001575,2]
[408181535,1773186640216,-500.0,0.00015786,2]
[408181536,1773186640227,-700.0,0.000158,5]
[408181537,1773186640236,-211.43,0.0001581,2]
[408181538,1773186640245,-311.946409,0.00015841,2]
[408181539,1773186640255,-166.66,0.0001585,2]
[408181540,1773186640264,-1000.0,0.000159,5]
[408181541,1773186640273,-175.0,0.00015996,2]
[408181542,1773186640283,-1066.449653,0.0001603,5]
[408181543,1773186640291,-2173.18,0.00016031,2]
[408181544,1773186640301,-1600.0,0.00016037,2]
[408181545,1773186640314,-152.0,0.00016087,3]
[408181546,1773186640323,-255.0,0.00016112,2]
[408181547,1773186640333,-1680.0,0.00016143,2]
[408181548,1773186640342,-1095.49569653,0.00016153,5]
[408181549,1773186640353,-166.66,0.00016157,2]
[408181550,1773186640363,-46998.0,0.000162,2]
[408181551,1773186640372,-161.23904761,0.00016216,2]
[408181552,1773186640382,-23225.1309,0.00016299,2]
[408181553,1773186640391,-150.0,0.00016438,30]
[408181554,1773186640400,-500.0,0.00016438,2]
[408181555,1773186640409,-150.0,0.00016493,30]
[408181556,1773186640419,-500.0,0.00016493,2]
[408181557,1773186640428,-2173.18,0.00016532,2]
[408181559,1773186640437,-150.0,0.00016548,30]
[408181560,1773186640446,-500.0,0.00016548,2]
[408181561,1773186640456,-211.43,0.00016601,2]
[408181562,1773186640465,-250.0,0.00016602,30]
[408181563,1773186640475,-500.0,0.00016602,2]
[408181565,1773186640484,-500.0,0.00016657,2]
[408181567,1773186640493,-500.0,0.00016704,2]
[408181568,1773186640502,-151.0,0.00016704,2]
[408181569,1773186640511,-500.0,0.00016712,2]
[408181570,1773186640520,-500.0,0.00016759,2]
[408181571,1773186640529,-500.0,0.00016767,2]
[408181572,1773186640537,-500.0,0.00016814,2]
[408181573,1773186640547,-500.0,0.00016822,2]
[408181574,1773186640556,-500.0,0.00016869,2]
[408181575,1773186640565,-500.0,0.00016876,2]
[408181576,1773186640574,-5533.0,0.000169,3]
[408181577,1773186640583,-500.0,0.00016924,2]
[408181578,1773186640592,-500.0,0.00016931,2]
[408181579,1773186640601,-500.0,0.00016979,2]
[408181580,1773186640610,-500.0,0.00016986,2]
[408181581,1773186640619,-300.0,0.00017,2]
[408181582,1773186640628,-500.0,0.00017,2]
[408181583,1773186640638,-2173.18,0.00017033,2]
[408181584,1773186640647,-500.0,0.00017034,2]
[408181585,1773186640657,-500.0,0.00017041,2]
[408181586,1773186640666,-500.0,0.00017089,2]
[408181587,1773186640675,-500.0,0.00017096,2]
[408181588,1773186640685,-500.0,0.00017144,2]
[408181589,1773186640694,-387.0,0.0001715,2]
[408181590,1773186640703,-500.0,0.00017199,2]
[408181591,1773186640712,-500.0,0.00017254,2]
[408181592,1773186640722,-500.0,0.00017309,2]
[408181593,1773186640731,-153.0,0.00017359,3]
[408181594,1773186640746,-211.43,0.00017391,2]
[408181595,1773186640755,-2173.18,0.00017534,2]
[408181596,1773186640764,-5533.0,0.000176,5]
[408181597,1773186640774,-1396.25,0.00017728,2]
[408181598,1773186640785,-1825.0,0.00017757,2]
[408181599,1773186640795,-500.0,0.00017808,2]
[408181600,1773186640804,-1600.0,0.00017819,2]
[408181601,1773186640815,-500.0,0.00017863,2]
[408181602,1773186640824,-200.76649827,0.00017918,2]
[408181603,1773186640834,-2173.18,0.00018035,2]
[408181604,1773186640843,-211.43,0.00018182,2]
[408181605,1773186640852,-1248.46821,0.0001834,2]
[408181606,1773186640862,-416.15607,0.0001834,2]
[408181607,1773186640871,-416.15606,0.0001841,2]
[408181608,1773186640880,-416.15607,0.0001841,2]
[408181609,1773186640890,-416.15607,0.0001841,2]
[408181610,1773186640899,-416.15607,0.0001841,2]
[408181611,1773186640908,-416.15607,0.0001841,2]
[408181612,1773186640918,-2173.18,0.00018536,2]
[408181613,1773186640927,-250.0,0.00018602,2]
[408181614,1773186640937,-32933.015,0.000189,2]
[408181615,1773186640946,-1000.0,0.000189,2]
[408181616,1773186640956,-211.43,0.00018972,2]
[408181617,1773186640965,-295.33154445,0.00019,2]
[408181618,1773186640974,-1000.0,0.00019027,2]
[408181619,1773186640984,-2173.18,0.00019037,2]
[408181620,1773186640993,-152.99,0.0001905,2]
[408181621,1773186641002,-1000.0,0.00019105,2]
[408181622,1773186641011,-3000.0,0.00019178,2]
[408181623,1773186641020,-3000.0,0.00019178,2]
[408181624,1773186641030,-3000.0,0.00019178,2]
[408181625,1773186641039,-2000.0,0.000192,2]
[408181626,1773186641048,-2368.21,0.000192,2]
[408181627,1773186641058,-172.24476457,0.000192,2]
[408181628,1773186641067,-1862.243,0.00019246,2]
[408181629,1773186641079,-1000.0,0.00019265,2]
[408181630,1773186641090,-152.0,0.00019479,3]
[408181631,1773186641106,-500.0,0.0001952,4]
[408181632,1773186641118,-1051.344124,0.000196,2]
[408181633,1773186641130,-1123.66214673,0.000196,2]
[408181634,1773186641142,-918.45065026,0.000196,2]
[408181636,1773186641154,-1600.0,0.00019601,2]
[408181638,1773186641165,-1977.67132423,0.000197,2]
[408181639,1773186641176,-500.0,0.00019726,2]
[408181640,1773186641186,-497.49770464,0.00019726,2]
[408181641,1773186641197,-500.0,0.00019726,2]
[408181642,1773186641208,-500.0,0.00019726,2]
[408181643,1773186641221,-500.0,0.00019726,2]
[408181644,1773186641231,-500.0,0.00019726,2]
[408181645,1773186641240,-500.0,0.00019726,2]
[408181646,1773186641250,-500.0,0.00019726,2]
[408181647,1773186641259,-500.0,0.00019726,2]
[408181648,1773186641270,-500.0,0.00019726,2]
[408181649,1773186641280,-500.0,0.00019726,2]
[408181650,1773186641290,-500.0,0.00019726,2]
[408181651,1773186641300,-500.0,0.00019726,2]
[408181652,1773186641311,-500.0,0.00019726,2]
[408181653,1773186641321,-500.0,0.00019726,2]
[408181654,1773186641331,-500.0,0.00019726,2]
[408181655,1773186641342,-500.0,0.00019726,2]
[408181656,1773186641352,-500.0,0.00019726,2]
[408181657,1773186641362,-150.699323,0.00019726,2]
[408181658,1773186641373,-500.0,0.00019726,2]
[408181659,1773186641383,-500.0,0.00019726,2]
[408181660,1773186641393,-500.0,0.00019726,2]
[408181661,1773186641404,-500.0,0.00019726,2]
[408181662,1773186641414,-500.0,0.00019726,2]
[408181663,1773186641424,-500.0,0.00019726,2]
[408181664,1773186641434,-533.14,0.00019726,2]
[408181665,1773186641445,-500.0,0.00019726,2]
[408181666,1773186641456,-500.0,0.00019726,2]
[408181667,1773186641467,-500.0,0.00019726,2]
[408181668,1773186641477,-500.0,0.00019726,2]
[408181669,1773186641488,-500.0,0.00019726,2]
[408181670,1773186641498,-500.0,0.00019726,2]
[408181671,1773186641508,-595.23,0.00019726,2]
[408181672,1773186641519,-211.43,0.00019763,2]
[408181673,1773186641534,-2542.72101729,0.0001981,2]
[408181674,1773186641545,-1000.0,0.00019811,2]
[408181675,1773186641555,-1000.0,0.00019811,2]
[408181676,1773186641565,-1000.0,0.00019811,2]
[408181677,1773186641575,-1000.0,0.00019811,2]
[408181678,1773186641585,-1000.0,0.00019811,2]
[408181679,1773186641595,-1000.0,0.00019811,2]
[408181680,1773186641605,-1000.0,0.00019811,2]
[408181681,1773186641615,-1000.0,0.00019811,2]
[408181682,1773186641625,-160.0,0.00019899,2]
[408181683,1773186641635,-172.91703981,0.00019899,2]
[408181684,1773186641645,-10000.0,0.000199,2]
[408181685,1773186641655,-1200.0,0.000199,7]
[408181686,1773186641665,-635.74737149,0.000199,2]
[408181687,1773186641674,-7226.3856153,0.00019968,2]
[408181688,1773186641684,-504.18348935,0.0001999,2]
[408181689,1773186641694,-209.00429843,0.00019999,2]
[408181690,1773186641704,-581.51,0.00019999,2]
[408181691,1773186641715,-1203453.04869796,0.0002,2]
[408181692,1773186641727,-164.68876927,0.0002,2]
[408181693,1773186641739,-151.27877634,0.0002,2]
[408181694,1773186641752,-175.15,0.0002,7]
[408181695,1773186641764,-349.1,0.0002,2]
[408181696,1773186641775,-173.69,0.0002,7]
[408181697,1773186641787,-1516.0,0.0002,2]
[408181698,1773186641798,-56529.61,0.0002,2]
[408181699,1773186641809,-151.0,0.0002,2]
[408181700,1773186641820,-151.0,0.0002,2]
[408181701,1773186641830,-300.0,0.0002,2]
[408181702,1773186641842,-151.0,0.0002,2]
[408181703,1773186641852,-152.0,0.0002,2]
[408181704,1773186641862,-250.0,0.0002,2]
[408181705,1773186641873,-168.0,0.0002008,2]
[408181706,1773186641885,-358.84,0.00020082,2]
[408181707,1773186641895,-231.14938953,0.00020091,2]
[408181708,1773186641905,-168.0,0.00020112,2]
[408181709,1773186641915,-168.0,0.00020137,2]
[408181710,1773186641926,-168.0,0.00020217,2]
[408181711,1773186641937,-1000.0,0.0002037,2]
[408181712,1773186641948,-5271.47223468,0.00020414,2]
[408181713,1773186641958,-168.0,0.00020451,2]
[408181714,1773186641968,-350.0,0.00020473,2]
[408181715,1773186641979,-168.0,0.00020476,2]
[408181716,1773186641989,-168.0,0.00020541,2]
[408181717,1773186641999,-168.0,0.00020548,2]
[408181718,1773186642010,-157.62,0.00020548,2]
[408181719,1773186642020,-211.43,0.00020553,2]
[408181720,1773186642030,-168.0,0.00020606,2]
[408181721,1773186642041,-168.0,0.00020615,2]
[408181722,1773186642051,-1696.7,0.00020643,2]
[408181723,1773186642061,-1999.0,0.00020644,2]
[408181724,1773186642071,-160.0,0.0002067,2]
[408181725,1773186642082,-168.0,0.00020695,2]
[408181726,1773186642092,-976.0,0.00020739,2]
[408181727,1773186642103,-168.0,0.00020754,2]
[408181728,1773186642114,-168.0,0.00020779,2]
[408181729,1773186642125,-700.0,0.00020909,2]
[408181730,1773186642136,-1000.0,0.00020918,2]
[408181731,1773186642147,-494.12,0.00021025,2]
[408181732,1773186642157,-496.32051683,0.00021025,2]
[408181733,1773186642168,-168.0,0.00021062,2]
[408181734,1773186642178,-168.0,0.000211,2]
[408181735,1773186642189,-350.0,0.0002113,2]
[408181736,1773186642199,-1999.0,0.00021192,2]
[408181737,1773186642208,-2806.0,0.0002131,2]
[408181738,1773186642219,-211.43,0.00021344,2]
[408181739,1773186642229,-159.315869,0.00021375,7]
[408181740,1773186642240,-1600.0,0.00021382,2]
[408181741,1773186642250,-2368.21,0.000214,2]
[408181742,1773186642260,-500.0,0.00021447,2]
[408181743,1773186642270,-5800.0,0.00021499,2]
[408181744,1773186642282,-350.0,0.00021761,3]
[408181745,1773186642292,-56529.61,0.000219,2]
[408181746,1773186642302,-5000.0,0.00021918,2]
[408181747,1773186642313,-150.0,0.00021918,30]
[408181748,1773186642324,-150.0,0.00021918,2]
[408181749,1773186642334,-150.0,0.00021973,30]
[408181750,1773186642345,-494.12,0.00021976,2]
[408181751,1773186642356,-153.0,0.00022022,3]
[408181752,1773186642367,-284.85240697,0.00022023,2]
[408181753,1773186642379,-161.56393612,0.00022028,30]
[408181754,1773186642389,-500.0,0.0002204,6]
[408181755,1773186642400,-152.99,0.00022094,2]
[408181756,1773186642410,-150.0,0.0002236,2]
[408181757,1773186642420,-288.08643525,0.0002238,2]
[408181758,1773186642431,-1612.4245796,0.00022498,2]
[408181759,1773186642441,-256.89,0.00022656,2]
[408181760,1773186642451,-152.0,0.0002287,3]
[408181761,1773186642461,-349.1,0.000229,7]
[408181762,1773186642472,-173.69,0.000229,7]
[408181763,1773186642483,-2000.0,0.000229,2]
[408181764,1773186642492,-500.0,0.00022999,2]
[408181765,1773186642503,-270.0,0.00023,2]
[408181766,1773186642513,-150.0,0.00023,2]
[408181767,1773186642523,-200.0,0.00023,2]
[408181768,1773186642533,-150.0,0.00023,2]
[408181769,1773186642542,-150.0,0.00023,2]
[408181770,1773186642552,-150.166,0.00023,2]
[408181771,1773186642561,-150.193,0.00023,2]
[408181772,1773186642571,-150.379,0.00023,2]
[408181773,1773186642590,-150.0,0.00023,2]
[408181774,1773186642605,-160.0,0.00023,2]
[408181775,1773186642616,-3505.0,0.00023,2]
[408181776,1773186642626,-1342.0,0.00023,2]
[408181777,1773186642637,-619.0,0.00023,2]
[408181778,1773186642649,-1279.0,0.00023,2]
[408181779,1773186642661,-1213.0,0.00023,2]
[408181780,1773186642672,-922.0,0.00023,2]
[408181781,1773186642686,-5995.0,0.00023,2]
[408181782,1773186642700,-414.0,0.00023,2]
[408181783,1773186642712,-359.7805546,0.00023062,2]
[408181784,1773186642725,-165.24,0.00023405,2]
[408181785,1773186642736,-450.0,0.00023834,10]
[408181786,1773186642748,-500.0,0.0002456,8]
[408181787,1773186642758,-1000.0,0.00024658,2]
[408181788,1773186642768,-150.0,0.00024658,2]
[408181789,1773186642779,-2368.21,0.000247,2]
[408181790,1773186642789,-610.75366744,0.000248,7]
[408181791,1773186642798,-39914.45620151,0.000248,7]
[408181792,1773186642823,-330.47737862,0.000248,7]
[408181793,1773186642876,-161.77123936,0.000155,2]
[408181794,1773186642887,-2461.0,0.00023,2]
[408181795,1773186642898,-16284.67641987,0.000248,7]
[408181796,1773186642908,-172.91703981,0.000248,7]
[408181797,1773186642920,-151.0,0.00024897,7]
[408181798,1773186642931,-1591.61793721,0.000249,3]
[408181799,1773186642975,-476.87520817,0.000249,3]
[408181805,1773186643627,-222.52962526,0.000155,2]
[408181806,1773186643638,-259.99558798,0.000155,2]
[408181807,1773186643648,-436.97459166,0.000155,2]
[408181808,1773186643658,-241.82302108,0.000247,2]
[408181809,1773186643668,-7248.87005713,0.000249,3]
[408181810,1773186643692,-212.38390121,0.000249,3]
[408181811,1773186643705,-707.48499536,0.000249,3]
[408181812,1773186643716,-592122.08759992,0.000249,3]
[408181813,1773186643726,-152.99,0.00025138,2]
[408181814,1773186643738,-5271.47223468,0.00025329,2]
[408181815,1773186643753,-166.66,0.00025494,2]
[408181816,1773186643764,-150.0,0.0002589,2]
[408181817,1773186643776,-150.0,0.00026,2]
[408181819,1773186643787,-150.0,0.00026,2]
[408181820,1773186643797,-3505.0,0.00026,2]
[408181821,1773186643807,-1342.0,0.00026,2]
[408181822,1773186643817,-619.0,0.00026,2]
[408181823,1773186643826,-1213.0,0.00026,2]
[408181824,1773186643836,-922.0,0.00026,2]
[408181825,1773186643847,-5994.0,0.00026,2]
[408181826,1773186643859,-414.0,0.00026,2]
[408181827,1773186643869,-2461.0,0.00026,2]
[408181828,1773186643879,-2361.92,0.00026119,2]
[408181829,1773186643888,-152.0,0.00026261,3]
[408181830,1773186643898,-349.1,0.000263,7]
[408181831,1773186643907,-173.69,0.000263,7]
[408181832,1773186643917,-166.66,0.00026336,2]
[408181833,1773186643926,-565.61,0.000264,30]
[408181834,1773186643936,-525.46,0.000265,14]
[408181835,1773186643946,-2000.0,0.000266,2]
[408181836,1773186643955,-153.0,0.00026685,3]
[408181837,1773186643965,-872.990867,0.00027,2]
[408181838,1773186643974,-500.0,0.0002708,11]
[408181839,1773186643984,-56529.61,0.000271,7]
[408181840,1773186643993,-2368.21,0.000271,2]
[408181841,1773186644003,-151.0,0.000271,2]
[408181842,1773186644013,-151.0,0.000271,2]
[408181843,1773186644022,-151.0,0.000271,2]
[408181844,1773186644032,-151.0,0.000271,2]
[408181845,1773186644041,-151.0,0.000271,2]
[408181846,1773186644051,-151.0,0.000271,2]
[408181847,1773186644060,-266.662004,0.000271,2]
[408181848,1773186644069,-266.662004,0.000271,2]
[408181849,1773186644079,-266.662004,0.000271,2]
[408181850,1773186644088,-266.662004,0.000271,2]
[408181852,1773186644098,-151.0,0.000271,2]
[408181853,1773186644108,-153.670557,0.000271,2]
[408181854,1773186644120,-166.66,0.00027178,2]
[408181855,1773186644131,-150.0,0.00027185,2]
[408181856,1773186644141,-150.0,0.00027369,2]
[408181857,1773186644151,-500.0,0.00027396,2]
[408181858,1773186644161,-151.0,0.00027397,2]
[408181859,1773186644170,-542.196612,0.00027397,2]
[408181860,1773186644180,-542.196612,0.00027397,2]
[408181861,1773186644190,-542.196612,0.00027397,2]
[408181862,1773186644200,-542.196612,0.00027397,2]
[408181863,1773186644210,-236.279905,0.00027397,2]
[408181864,1773186644220,-151.0,0.00027397,2]
[408181865,1773186644229,-1000.0,0.00027397,20]
[408181866,1773186644239,-300.0,0.00027397,2]
[408181867,1773186644248,-10989.22,0.00027397,10]
[408181868,1773186644259,-20955.7,0.00027397,10]
[408181869,1773186644268,-17463.08,0.00027397,10]
[408181870,1773186644278,-150.0,0.00027734,2]
[408181871,1773186644287,-4690.96316283,0.00027734,2]
[408181872,1773186644299,-845.25685037,0.00028,60]
[408181873,1773186644309,-1000.0,0.00028,120]
[408181874,1773186644319,-682.684,0.00028,120]
[408181875,1773186644328,-166.66,0.00028019,2]
[408181876,1773186644338,-152.99,0.00028183,2]
[408181877,1773186644348,-150.0,0.00028544,2]
[408181878,1773186644358,-166.66,0.00028861,2]
[408181879,1773186644367,-349.1,0.000289,7]
[408181880,1773186644377,-173.69,0.000289,7]
[408181881,1773186644387,-150.0,0.00029,2]
[408181882,1773186644396,-150.0,0.00029,2]
[408181883,1773186644406,-3505.0,0.00029,2]
[408181884,1773186644415,-1342.0,0.00029,2]
[408181885,1773186644426,-414.0,0.00029,2]
[408181886,1773186644435,-2461.0,0.00029,2]
[408181887,1773186644727,-252.0,0.00029072,2]
[408181888,1773186644748,-288.08643525,0.0002926,2]
[408181889,1773186644765,-500.0,0.000296,13]
[408181890,1773186644778,-152.0,0.00029652,3]
[408181891,1773186644789,-166.66,0.00029702,2]
[408181892,1773186644798,-3560.0,0.000299,5]
[408181893,1773186644807,-3694.0,0.000299,5]
[408181894,1773186644816,-3823.0,0.000299,5]
[408181895,1773186644826,-150.0,0.00029971,2]
[408181896,1773186644835,-1350.427214,0.0003,2]
[408181897,1773186644844,-256.89,0.0003001,2]
[408181898,1773186644853,-5271.47223468,0.00030243,2]
[408181899,1773186644862,-2000.0,0.000303,2]
[408181900,1773186644871,-153.06,0.00030411,120]
[408181901,1773186644880,-56529.61,0.000305,7]
[408181902,1773186644890,-577.0,0.00031156,2]
[408181903,1773186644899,-276.0,0.00031156,2]
[408181904,1773186644909,-152.99,0.00031227,2]
[408181905,1773186644919,-153.0,0.00031348,3]
[408181906,1773186644930,-150.0,0.0003147,2]
[408181907,1773186644940,-3502.0,0.00032,2]
[408181908,1773186644950,-1342.0,0.00032,2]
[408181909,1773186644959,-414.0,0.00032,2]
[408181910,1773186644968,-2461.0,0.00032,2]
[408181911,1773186644977,-500.0,0.0003212,15]
[408181912,1773186644987,-563.504567,0.00033,14]
[408181913,1773186644995,-5009.23441676,0.00033,30]
[408181914,1773186645005,-150.0,0.00033043,2]
[408181915,1773186645014,-152.0,0.00033044,3]
[408181916,1773186645023,-161.2390476,0.00033058,2]
[408181917,1773186645032,-437.88,0.000334,30]
[408181918,1773186645041,-349.1,0.000334,14]
[408181919,1773186645050,-173.69,0.000334,30]
[408181920,1773186645060,-385.0,0.00033872,2]
[408181921,1773186645070,-2000.0,0.00034,2]
[408181922,1773186645079,-152.99,0.00034271,30]
[408181923,1773186645088,-500.0,0.0003464,18]
[408181924,1773186645098,-150.0,0.00034696,2]